bitfinex/quotes_SOLUSD_20251115
["timestamp","ask_amount","ask_price","bid_price","bid_amount"]
[1763195031810,3.34588897,141.92,141.88,2.68588897]
[1763195032326,0.66,141.91,141.89,7.04771301]
[1763195032915,0.66,141.91,141.88,2.68588897]
[1763195032916,3.34588897,141.91,141.86,0.67]
[1763195033118,0.66,141.91,141.87,2.68588897]
[1763195033508,0.66,141.91,141.87,3.35588897]
[1763195033722,0.66,141.91,141.87,0.67]
[1763195033917,0.66,141.91,141.88,2.68588897]
[1763195034324,0.66,141.91,141.88,7.04820975]
[1763195034530,0.66,141.91,141.87,10.40449989]
[1763195034820,0.66,141.91,141.87,28.02626629]
[1763195035313,0.66,141.91,141.87,25.34037732]
[1763195035528,0.66,141.91,141.88,2.68588897]
[1763195036014,0.66,141.93,141.89,3.35588897]
[1763195036218,0.66,141.93,141.9,7.04721634]
[1763195036425,0.66,141.93,141.9,10.40310531]
[1763195036626,0.66,141.93,141.9,28.02114618]
[1763195037527,2.68588897,141.91,141.85,9.78882769]
[1763195037708,2.68588897,141.91,141.86,25.33708897]
[1763195037912,3.34588897,141.9,141.86,23.86709418]
[1763195038121,3.34588897,141.9,141.86,2.68588897]
[1763195038324,3.34588897,141.89,141.86,7.04920344]
[1763195038838,0.66,141.88,141.86,7.04920344]
[1763195040316,3.34588897,141.88,141.83,9.73658346]
[1763195040514,104.3,141.87,141.83,10.40658346]
[1763195040728,104.96,141.87,141.84,0.67]
[1763195041054,104.96,141.87,141.84,3.35588897]
[1763195041238,104.96,141.87,141.83,7.72069449]
[1763195041426,104.96,141.87,141.84,2.68588897]
[1763195041749,104.96,141.87,141.83,7.72069449]
[1763195041948,104.96,141.87,141.84,2.68588897]
[1763195042133,104.3,141.87,141.86,2.68588897]
[1763195042333,104.3,141.87,141.86,10.40509241]
[1763195042729,104.3,141.87,141.86,7.71920344]
[1763195043028,104.3,141.87,141.86,10.40509241]
[1763195044934,0.66,141.9,141.86,28.02810101]
[1763195045251,22.6512,141.91,141.88,2.68588897]
[1763195045474,22.6512,141.91,141.87,0.67]
[1763195045475,104.3,141.92,141.9,2.68588897]
[1763195045631,0.66,141.94,141.91,2.68588897]
[1763195045832,0.66,141.93,141.91,2.68588897]
[1763195046543,0.66,141.93,141.92,7.04622322]
[1763195046740,104.3,141.95,141.92,10.40211219]
[1763195046953,104.3,141.95,141.93,0.67]
[1763195047128,104.3,141.95,141.93,3.35588897]
[1763195047533,104.3,141.95,141.93,2.68588897]
[1763195047946,3.34588897,141.97,141.93,2.68588897]
[1763195047947,0.66,141.97,141.93,2.68588897]
[1763195048272,0.66,141.96,141.93,2.68588897]
[1763195048457,0.66,141.96,141.93,9.73125077]
[1763195048963,25.33708897,141.97,141.91,7.04671975]
[1763195048964,0.66,141.95,141.91,7.04671975]
[1763195049136,0.66,141.95,141.92,2.68588897]
[1763195049331,25.99708897,141.97,141.92,3.35588897]
[1763195049530,0.66,141.96,141.92,3.35588897]
[1763195050654,2.68588897,141.94,141.89,17.61879934]
[1763195050860,2.68588897,141.94,141.89,20.30468831]
[1763195051162,0.71,141.93,141.89,21.01468831]
[1763195051359,0.71,141.93,141.88,35.2390889]
[1763195051360,2.68588897,141.92,141.88,7.04820975]
[1763195051537,26.04708897,141.93,141.88,27.3546231]
[1763195051860,0.71,141.92,141.88,28.0646231]
[1763195052044,0.71,141.92,141.89,2.68588897]
[1763195052250,23.3612,141.93,141.9,2.68588897]
[1763195052443,23.3612,141.93,141.89,3.39588897]
[1763195052641,0.71,141.93,141.9,7.04721634]
[1763195052843,0.69,141.92,141.89,7.75756474]
[1763195053060,3.37588897,141.92,141.89,7.75756474]
[1763195053564,0.69,141.92,141.89,7.75756474]
[1763195054246,25.33708897,141.93,141.89,7.75756474]
[1763195054442,0.69,141.92,141.89,7.75756474]
[1763195054867,0.69,141.92,141.89,7.04756474]
[1763195055172,2.40955504,141.92,141.89,7.04756474]
[1763195055664,2.40955504,141.92,141.89,7.76756474]
[1763195055868,2.40955504,141.92,141.89,0.72]
[1763195056067,2.40955504,141.92,141.89,7.76761097]
[1763195056270,0.69,141.92,141.89,7.76761097]
[1763195056781,0.69,141.92,141.89,7.04761097]
[1763195057369,0.69,141.92,141.89,7.76761097]
[1763195057760,0.69,141.92,141.89,7.04761097]
[1763195057961,106.01955504,141.91,141.88,7.04814392]
[1763195058188,104.99,141.9,141.88,7.04814392]
[1763195058356,104.3,141.9,141.88,7.04814392]
[1763195058552,0.69,141.89,141.88,7.04814392]
[1763195058751,0.69,141.89,141.86,7.04920344]
[1763195059460,0.69,141.89,141.86,7.76920344]
[1763195060588,104.99,141.97,141.88,22.6512]
[1763195060756,104.99,141.97,141.94,1.71955504]
[1763195060757,104.3,141.97,141.94,1.71955504]
[1763195060953,0.69,141.96,141.9,9.78882769]
[1763195061160,2.40955504,141.96,141.91,1.71955504]
[1763195061692,0.69,141.95,141.91,1.71955504]
[1763195062053,0.69,141.95,141.9,0.72]
[1763195062054,2.40955504,141.95,141.9,1.71955504]
[1763195062382,1.71955504,141.94,141.89,19.3383043]
[1763195062577,2.40955504,141.94,141.9,24.66517815]
[1763195062763,0.69,141.93,141.9,26.38473319]
[1763195062964,0.69,141.93,141.9,7.04713728]
[1763195064070,2.40955504,141.93,141.89,7.04771301]
[1763195064459,0.69,141.92,141.89,7.04771301]
[1763195065183,1.71955504,141.94,141.89,26.38655059]
[1763195065679,0.69,141.93,141.89,7.76771301]
[1763195065862,0.69,141.93,141.89,8.76726805]
[1763195066271,23.3412,141.93,141.89,7.04771301]
[1763195066579,1.71955504,141.91,141.87,7.04856925]
[1763195066764,1.71955504,141.9,141.87,7.04856925]
[1763195066964,2.40955504,141.91,141.87,7.76856925]
[1763195067179,0.69,141.91,141.87,9.48812429]
[1763195067358,0.69,141.9,141.87,7.04856925]
[1763195069485,0.69,141.9,141.86,26.39096921]
[1763195069798,104.99,141.92,141.88,1.71955504]
[1763195070190,104.3,141.92,141.88,1.71955504]
[1763195070392,104.99,141.92,141.89,1.71955504]
[1763195070594,104.3,141.92,141.88,0.72]
[1763195070887,104.3,141.92,141.89,1.71955504]
[1763195071287,104.3,141.92,141.9,2.43955504]
[1763195071590,104.3,141.92,141.91,7.04671975]
[1763195071787,104.3,141.92,141.9,7.04718932]
[1763195071981,104.3,141.92,141.9,7.76718932]
[1763195072188,104.3,141.92,141.9,7.04718932]
[1763195079290,104.3,141.92,141.88,1.71955504]
[1763195079507,0.69,141.91,141.88,1.71955504]
[1763195079716,0.69,141.91,141.88,2.43955504]
[1763195080298,104.3,141.92,141.88,2.43955504]
[1763195080484,104.99,141.92,141.88,2.43955504]
[1763195080994,104.99,141.92,141.88,0.72]
[1763195081301,104.99,141.92,141.88,2.43955504]
[1763195081473,104.99,141.92,141.89,24.66699555]
[1763195083608,0.72,141.91,141.89,24.66699555]
[1763195084681,0.72,141.91,141.89,7.04771301]
[1763195088093,104.3,141.92,141.89,25.34699555]
[1763195088301,105.02,141.92,141.89,25.34699555]
[1763195088804,104.3,141.92,141.89,26.38655059]
[1763195088981,104.3,141.92,141.9,2.39955504]
[1763195089492,104.3,141.92,141.9,1.71955504]
[1763195089893,104.3,141.92,141.9,2.39955504]
[1763195090201,104.3,141.92,141.91,7.04671975]
[1763195090783,105.02,141.92,141.91,7.04671975]
[1763195092606,105.02,141.92,141.88,7.72820975]
[1763195092810,1.71955504,141.9,141.83,0.68]
[1763195092991,0.72,141.89,141.84,2.39955504]
[1763195093196,0.72,141.89,141.84,0.68]
[1763195093403,0.72,141.89,141.85,0.68]
[1763195093606,0.72,141.89,141.85,2.39955504]
[1763195094014,1.71955504,141.88,141.82,9.78882769]
[1763195094205,1.71955504,141.87,141.82,2.39955504]
[1763195094511,2.43955504,141.86,141.82,7.05114799]
[1763195094691,2.43955504,141.85,141.82,7.05114799]
[1763195094889,1.71955504,141.84,141.81,7.05150466]
[1763195095114,2.43955504,141.84,141.81,7.05150466]
[1763195095319,0.72,141.83,141.8,7.05203853]
[1763195097192,2.43955504,141.83,141.8,7.05203853]
[1763195097707,0.72,141.82,141.8,7.05203853]
[1763195098703,22.6512,141.87,141.79,17.63111638]
[1763195098704,0.14216157,141.86,141.79,26.40335496]
[1763195098909,2.43955504,141.84,141.79,26.40335496]
[1763195099292,2.43955504,141.84,141.79,24.68379992]
[1763195099503,0.72,141.83,141.79,25.36379992]
[1763195100122,104.3,141.82,141.79,27.08335496]
[1763195100326,104.3,141.82,141.79,25.36379992]
[1763195100502,105.02,141.82,141.79,25.36379992]
[1763195100818,104.3,141.82,141.8,12.18838273]
[1763195101019,104.3,141.82,141.81,11.50838273]
[1763195101327,2.43955504,141.86,141.81,12.18838273]
[1763195101508,2.43955504,141.86,141.81,2.39955504]
[1763195101703,0.72,141.85,141.82,0.68]
[1763195101919,1.71955504,141.87,141.82,2.39955504]
[1763195102126,104.3,141.86,141.83,7.05069449]
[1763195102331,104.3,141.86,141.83,25.35743072]
[1763195102512,105.02,141.86,141.83,25.35743072]
[1763195102829,104.3,141.86,141.84,0.68]
[1763195103030,105.02,141.86,141.83,27.07698576]
[1763195103401,104.3,141.86,141.83,27.07698576]
[1763195103602,104.3,141.86,141.83,26.39698576]
[1763195103802,105.02,141.86,141.83,24.67743072]
[1763195104013,1.71955504,141.84,141.74,35.2752722]
[1763195104215,1.71955504,141.82,141.78,0.68]
[1763195104433,0.72,141.81,141.78,0.68]
[1763195104911,0.72,141.81,141.78,2.39955504]
[1763195105310,2.43955504,141.83,141.78,2.39955504]
[1763195105509,0.72,141.82,141.78,2.39955504]
[1763195106329,0.72,141.82,141.79,7.05268354]
[1763195106706,2.43955504,141.82,141.79,7.05268354]
[1763195107237,1.71955504,141.82,141.79,7.05268354]
[1763195107441,2.43955504,141.82,141.79,7.05268354]
[1763195107755,126.9512,141.86,141.79,25.3643924]
[1763195108047,2.43955504,141.83,141.79,25.3643924]
[1763195108418,0.72,141.82,141.79,25.3643924]
[1763195110533,2.43955504,141.84,141.79,27.08394744]
[1763195110915,1.71955504,141.84,141.79,27.08394744]
[1763195111110,0.7,141.83,141.79,27.08394744]
[1763195111644,0.7,141.83,141.8,0.68]
[1763195113344,0.7,141.83,141.8,2.39955504]
[1763195113641,1.71955504,141.84,141.81,7.05168887]
[1763195113815,2.39955504,141.84,141.81,7.75168887]
[1763195114438,2.39955504,141.84,141.81,7.05168887]
[1763195114647,104.98,141.83,141.81,7.05168887]
[1763195114942,0.68,141.85,141.81,26.4004661]
[1763195115156,104.3,141.87,141.81,26.4004661]
[1763195115157,104.98,141.87,141.83,11.50838273]
[1763195115508,104.98,141.87,141.84,7.0501974]
[1763195115713,104.98,141.87,141.84,7.7501974]
[1763195115935,104.98,141.87,141.84,9.46975244]
[1763195116136,104.98,141.87,141.84,7.7501974]
[1763195116843,104.98,141.87,141.84,7.0501974]
[1763195117241,104.3,141.87,141.84,7.0501974]
[1763195117452,0.68,141.86,141.82,16.84001934]
[1763195117641,0.68,141.86,141.83,9.73908319]
[1763195117964,0.68,141.86,141.83,10.43908319]
[1763195118635,0.68,141.86,141.82,27.41633306]
[1763195118636,3.36860825,141.86,141.82,7.05106238]
[1763195118944,0.68,141.85,141.82,7.05106238]
[1763195119141,3.36860825,141.85,141.82,7.05106238]
[1763195119448,2.68860825,141.84,141.8,7.05202593]
[1763195119635,3.36860825,141.83,141.79,7.05268354]
[1763195120148,0.68,141.82,141.79,7.05268354]
[1763195121247,0.68,141.82,141.79,7.75268354]
[1763195121629,0.68,141.82,141.79,7.05268354]
[1763195122230,3.36860825,141.82,141.78,7.0529891]
[1763195122853,104.3,141.85,141.78,7.0529891]
[1763195122854,3.36860825,141.81,141.78,7.0529891]
[1763195123148,3.36860825,141.81,141.77,7.05367849]
[1763195123350,0.68,141.8,141.77,7.05367849]
[1763195124528,2.68860825,141.81,141.78,0.7]
[1763195124728,3.36860825,141.81,141.78,0.7]
[1763195124929,0.68,141.8,141.77,27.37648297]
[1763195125227,0.68,141.8,141.77,7.05367849]
[1763195125636,0.68,141.8,141.77,9.74228674]
[1763195125856,0.68,141.8,141.77,10.44228674]
[1763195126153,0.68,141.8,141.77,28.07648297]
[1763195126334,104.98,141.8,141.77,28.07648297]
[1763195127749,0.68,141.79,141.76,7.05395836]
[1763195127938,0.68,141.79,141.76,10.44256661]
[1763195128842,104.3,141.8,141.76,27.37800679]
[1763195129347,0.68,141.79,141.76,28.07800679]
[1763195129546,0.68,141.79,141.76,25.38939854]
[1763195129743,0.68,141.79,141.76,28.07800679]
[1763195130144,0.68,141.79,141.76,24.68939854]
[1763195130644,0.68,141.79,141.76,27.37800679]
[1763195130958,104.3,141.8,141.77,3.38860825]
[1763195131434,2.68860825,141.78,141.72,17.73492745]
[1763195131636,2.68860825,141.74,141.72,0.1]
[1763195131842,22.6512,141.75,141.72,0.1]
[1763195132240,22.6512,141.79,141.72,3.48860825]
[1763195132438,23.3312,141.79,141.74,2.68860825]
[1763195132642,0.68,141.78,141.74,2.68860825]
[1763195132851,2.68860825,141.77,141.72,8.18500588]
[1763195133059,2.68860825,141.76,141.72,5.49639763]
[1763195133251,0.68,141.77,141.6,4.68860824]
[1763195133482,2.68860825,141.74,141.69,2.68860825]
[1763195133759,2.68860825,141.74,141.7,7.05716302]
[1763195133946,0.68,141.73,141.7,7.05716302]
[1763195134141,0.68,141.73,141.67,22.6512]
[1763195134341,3.36860825,141.73,141.68,2.68860825]
[1763195134540,3.36860825,141.73,141.67,19.53609338]
[1763195134765,0.68,141.72,141.67,19.53609338]
[1763195135137,2.68860825,141.71,141.67,7.05865744]
[1763195135336,0.68,141.72,141.67,7.05865744]
[1763195135337,2.68860825,141.7,141.67,7.05865744]
[1763195135541,3.36860825,141.71,141.67,7.05865744]
[1763195135755,0.68,141.73,141.66,7.05915572]
[1763195136067,2.68860825,141.71,141.66,9.74776397]
[1763195136269,2.68860825,141.71,141.66,27.39565328]
[1763195136474,0.68,141.7,141.66,27.39565328]
[1763195137076,0.68,141.73,141.67,3.38860825]
[1763195137281,3.36860825,141.73,141.68,2.68860825]
[1763195137441,0.68,141.73,141.68,2.68860825]
[1763195137640,0.68,141.72,141.68,3.38860825]
[1763195137839,0.68,141.72,141.69,7.05766109]
[1763195138369,3.36860825,141.74,141.69,28.09042206]
[1763195138580,106.98860825,141.76,141.71,2.68860825]
[1763195138748,104.98,141.76,141.72,2.68860825]
[1763195138941,3.36860825,141.78,141.73,2.68860825]
[1763195139143,2.68860825,141.78,141.73,2.68860825]
[1763195139354,3.36860825,141.77,141.72,3.38860825]
[1763195139772,0.68,141.76,141.72,3.38860825]
[1763195140075,0.68,141.76,141.73,7.05566923]
[1763195140369,3.36860825,141.76,141.72,7.05599821]
[1763195140585,0.68,141.75,141.72,7.05599821]
[1763195142189,0.68,141.75,141.71,9.74509728]
[1763195142354,3.36860825,141.75,141.71,7.05648903]
[1763195142674,2.68860825,141.73,141.7,7.05700627]
[1763195142857,2.68860825,141.71,141.68,7.05797108]
[1763195143058,2.68860825,141.69,141.62,0.72]
[1763195143356,0.71,141.68,141.64,7.06015249]
[1763195143563,3.39860825,141.68,141.64,7.06015249]
[1763195143762,3.39860825,141.68,141.63,3.40860825]
[1763195143963,3.39860825,141.68,141.64,0.72]
[1763195143964,0.71,141.68,141.64,0.72]
[1763195144452,0.71,141.7,141.64,0.72]
[1763195144654,0.71,141.72,141.68,2.68860825]
[1763195144855,0.71,141.72,141.68,6.67177399]
[1763195145255,7.38177399,141.72,141.67,6.67177399]
[1763195145474,6.67177399,141.71,141.67,7.05865744]
[1763195145786,6.67177399,141.7,141.67,7.05865744]
[1763195145967,7.38177399,141.7,141.67,7.05865744]
[1763195146164,0.71,141.69,141.67,7.05865744]
[1763195146681,7.38177399,141.69,141.67,7.05865744]
[1763195147694,7.38177399,141.69,141.66,17.64695794]
[1763195147906,6.67177399,141.71,141.66,24.31873193]
[1763195148203,105.01,141.74,141.68,6.67177399]
[1763195148361,6.67177399,141.73,141.68,6.67177399]
[1763195148566,7.38177399,141.73,141.68,7.39177399]
[1763195148892,6.67177399,141.73,141.68,7.39177399]
[1763195149092,0.71,141.72,141.68,7.39177399]
[1763195149775,6.67177399,141.73,141.69,7.77766109]
[1763195149985,0.71,141.73,141.69,7.77766109]
[1763195150197,0.71,141.73,141.69,14.44943508]
[1763195150374,0.71,141.73,141.7,6.67177399]
[1763195150600,104.3,141.74,141.7,7.39177399]
[1763195150893,105.01,141.74,141.7,6.67177399]
[1763195151095,0.71,141.73,141.7,6.17177399]
[1763195151473,0.71,141.73,141.69,31.3735878]
[1763195151673,0.71,141.73,141.69,32.0935878]
[1763195153099,0.71,141.73,141.7,6.67177399]
[1763195153768,0.71,141.73,141.71,7.05666502]
[1763195155299,7.38177399,141.73,141.68,18.3648665]
[1763195155598,0.71,141.73,141.69,31.3735878]
[1763195155920,7.38177399,141.73,141.69,31.3735878]
[1763195156288,0.71,141.73,141.69,32.0935878]
[1763195158207,104.3,141.74,141.7,0.72]
[1763195158410,104.3,141.74,141.7,7.39177399]
[1763195158608,105.01,141.74,141.7,7.39177399]
[1763195159109,105.01,141.74,141.7,0.72]
[1763195159312,104.3,141.74,141.72,6.67177399]
[1763195159502,104.3,141.74,141.72,7.39177399]
[1763195159703,104.3,141.74,141.7,0.72]
[1763195159899,104.3,141.74,141.71,6.67177399]
[1763195160119,105.01,141.74,141.72,7.05616709]
[1763195160298,104.3,141.74,141.72,13.72794108]
[1763195160889,105.01,141.74,141.72,13.72794108]
[1763195161088,104.3,141.74,141.72,13.72794108]
[1763195163298,104.3,141.74,141.71,14.44829993]
[1763195163817,104.3,141.74,141.72,6.67177399]
[1763195164207,104.3,141.74,141.73,7.05566923]
[1763195167444,104.3,141.74,141.73,10.46859771]
[1763195167601,104.3,141.77,141.73,28.10777078]
[1763195167795,104.3,141.77,141.75,2.69292848]
[1763195168024,3.40292848,141.8,141.76,2.69292848]
[1763195168325,104.3,141.79,141.77,7.05367849]
[1763195168799,104.3,141.79,141.77,9.74660697]
[1763195170502,104.3,141.79,141.78,2.69292848]
[1763195170815,104.95,141.84,141.78,3.41292848]
[1763195171019,104.95,141.84,141.8,2.69292848]
[1763195171202,0.65,141.83,141.8,2.69292848]
[1763195172431,2.69292848,141.82,141.73,40.29037307]
[1763195172725,2.69292848,141.8,141.75,2.69292848]
[1763195172932,2.69292848,141.79,141.73,24.6948423]
[1763195173218,2.69292848,141.78,141.73,27.38777078]
[1763195173622,0.71,141.77,141.73,7.05566923]
[1763195173829,2.69292848,141.76,141.73,7.05566923]
[1763195174197,0.71,141.75,141.73,7.05566923]
[1763195174401,3.40292848,141.75,141.72,7.05602301]
[1763195174621,3.40292848,141.74,141.72,7.05602301]
[1763195174810,0.71,141.73,141.72,7.05602301]
[1763195175532,0.71,141.73,141.7,7.05700654]
[1763195176128,0.71,141.73,141.7,13.72760069]
[1763195176424,0.71,141.73,141.69,6.67059415]
[1763195176600,7.38059415,141.73,141.69,7.05766109]
[1763195177107,7.38059415,141.72,141.68,7.05802625]
[1763195177331,6.67059415,141.7,141.68,7.05802625]
[1763195177535,6.67059415,141.7,141.64,45.08733666]
[1763195177536,6.67059415,141.7,141.65,6.67059415]
[1763195177835,7.38059415,141.69,141.65,7.05965407]
[1763195178202,0.71,141.68,141.65,7.05965407]
[1763195178407,0.71,141.68,141.65,6.67059415]
[1763195178907,0.71,141.68,141.65,4.19340268]
[1763195179608,0.71,141.68,141.66,4.19340268]
[1763195180522,0.71,141.68,141.67,7.05865744]
[1763195181437,23.3612,141.68,141.64,7.71994145]
[1763195181624,23.3612,141.68,141.65,4.19340268]
[1763195181922,0.71,141.67,141.65,4.19340268]
[1763195182440,0.71,141.68,141.66,4.19340268]
[1763195182635,0.71,141.68,141.67,7.05865744]
[1763195183828,0.71,141.7,141.67,7.05865744]
[1763195184126,0.71,141.69,141.67,7.05865744]
[1763195185834,0.71,141.74,141.68,4.85340268]
[1763195186012,0.71,141.74,141.68,0.66]
[1763195186333,0.71,141.74,141.7,4.19340268]
[1763195186833,4.90340268,141.74,141.71,7.05666502]
[1763195187341,4.90340268,141.73,141.68,7.05815923]
[1763195187510,26.84460268,141.69,141.62,4.19340268]
[1763195187718,22.6512,141.69,141.62,0.66]
[1763195187928,4.90340268,141.68,141.63,4.19340268]
[1763195188240,0.71,141.67,141.64,4.19340268]
[1763195188818,4.19340268,141.68,141.64,11.91305753]
[1763195189019,0.71,141.68,141.64,11.91305753]
[1763195189623,0.71,141.7,141.66,4.19340268]
[1763195189825,108.49340268,141.72,141.67,4.85340268]
[1763195190316,108.49340268,141.72,141.68,4.85340268]
[1763195190317,4.90340268,141.72,141.68,4.85340268]
[1763195190833,4.90340268,141.72,141.69,7.05766109]
[1763195191031,0.71,141.72,141.69,7.05766109]
[1763195192233,4.19340268,141.71,141.66,7.05915572]
[1763195192536,4.19340268,141.69,141.66,7.05915572]
[1763195193039,4.90340268,141.69,141.65,24.70848655]
[1763195193341,4.90340268,141.69,141.65,25.36848655]
[1763195193549,0.71,141.68,141.61,17.65384356]
[1763195193739,0.71,141.68,141.62,0.66]
[1763195194041,0.71,141.68,141.63,4.19340268]
[1763195194226,4.90340268,141.68,141.63,4.19340268]
[1763195194542,4.90340268,141.68,141.63,4.85340268]
[1763195194837,0.71,141.67,141.63,4.85340268]
[1763195195043,0.71,141.67,141.64,7.06015249]
[1763195196143,104.3,141.65,141.62,7.72108946]
[1763195196312,105.01,141.65,141.62,7.72108946]
[1763195196715,105.01,141.65,141.61,11.2548561]
[1763195196716,104.3,141.64,141.61,11.2548561]
[1763195196920,104.3,141.64,141.61,11.9148561]
[1763195197117,105.01,141.64,141.61,7.06145342]
[1763195197339,109.20340268,141.64,141.6,7.72201803]
[1763195197646,104.3,141.64,141.61,4.85340268]
[1763195198140,104.3,141.64,141.6,28.91078794]
[1763195198447,109.20340268,141.64,141.61,0.66]
[1763195198741,105.01,141.64,141.61,0.66]
[1763195198920,106.73641224,141.64,141.6,25.37738526]
[1763195199125,0.71,141.63,141.6,7.06201803]
[1763195199322,106.73641224,141.64,141.6,7.72201803]
[1763195199750,0.71,141.63,141.6,7.06201803]
[1763195200034,0.71,141.63,141.57,9.78882769]
[1763195200035,1.72641224,141.62,141.58,7.06314451]
[1763195200334,1.72641224,141.62,141.58,26.44741802]
[1763195200535,0.71,141.61,141.58,26.44741802]
[1763195200740,2.43641224,141.62,141.58,27.10741802]
[1763195200934,4.19749902,141.62,141.58,29.5785048]
[1763195201146,4.90749902,141.62,141.58,29.5785048]
[1763195201336,4.90749902,141.62,141.58,25.38100578]
[1763195202151,4.90749902,141.62,141.58,29.5785048]
[1763195202458,0.71,141.62,141.58,29.5785048]
[1763195203355,4.90749902,141.62,141.58,25.38100578]
[1763195203558,0.71,141.62,141.58,29.5785048]
[1763195203744,104.3,141.64,141.6,4.19749902]
[1763195203946,105.02,141.64,141.6,4.86749902]
[1763195204140,104.3,141.64,141.62,4.19749902]
[1763195204447,0.72,141.66,141.61,0.67]
[1763195204650,4.19749902,141.65,141.58,60.03672833]
[1763195204847,4.19749902,141.65,141.59,10.45882769]
[1763195205059,0.72,141.64,141.59,10.45882769]
[1763195205245,0.72,141.64,141.6,4.19749902]
[1763195205439,0.72,141.64,141.61,7.06164818]
[1763195205742,105.02,141.64,141.61,7.06164818]
[1763195207039,105.02,141.64,141.61,11.2591472]
[1763195207235,104.3,141.64,141.62,4.86749902]
[1763195207564,104.3,141.64,141.63,7.06065099]
[1763195207738,104.3,141.64,141.63,11.92815001]
[1763195208651,104.3,141.64,141.63,11.25815001]
[1763195209071,104.3,141.64,141.63,11.92815001]
[1763195209548,105.02,141.67,141.63,29.57977749]
[1763195209747,105.02,141.67,141.64,4.19749902]
[1763195210079,105.02,141.67,141.64,4.86749902]
[1763195210080,104.3,141.67,141.64,4.86749902]
[1763195210372,104.3,141.67,141.61,9.78882769]
[1763195210373,0.72,141.66,141.61,9.78882769]
[1763195210549,105.02,141.67,141.63,4.19749902]
[1763195210946,105.02,141.67,141.63,4.86749902]
[1763195211266,0.72,141.66,141.63,4.86749902]
[1763195211575,104.3,141.67,141.64,7.06015249]
[1763195211749,105.02,141.67,141.64,7.73015249]
[1763195212546,105.02,141.67,141.64,11.92765151]
[1763195213243,105.02,141.67,141.64,7.06015249]
[1763195214075,104.3,141.67,141.64,7.06015249]
[1763195214272,0.72,141.71,141.66,4.19749902]
[1763195214490,4.91749902,141.71,141.67,4.19749902]
[1763195214877,0.72,141.7,141.67,4.19749902]
[1763195215191,0.72,141.7,141.66,0.67]
[1763195215376,0.72,141.71,141.67,4.19749902]
[1763195215702,0.72,141.71,141.68,0.67]
[1763195215887,0.72,141.71,141.62,9.78882769]
[1763195215888,4.19749902,141.69,141.62,9.78882769]
[1763195216200,4.19749902,141.68,141.64,4.19749902]
[1763195216499,4.19749902,141.68,141.63,0.67]
[1763195216500,0.72,141.67,141.63,4.86749902]
[1763195216795,4.19749902,141.68,141.63,0.67]
[1763195217008,4.91749902,141.67,141.62,4.19749902]
[1763195217208,4.91749902,141.67,141.63,0.67]
[1763195217517,0.72,141.67,141.63,4.86749902]
[1763195218076,0.72,141.67,141.64,7.06015249]
[1763195218278,0.72,141.67,141.64,7.73015249]
[1763195218477,0.14216157,141.71,141.64,29.57803275]
[1763195218708,4.91749902,141.69,141.64,29.57803275]
[1763195219201,0.72,141.68,141.64,29.57803275]
[1763195219390,0.72,141.68,141.65,0.67]
[1763195219590,0.72,141.68,141.64,29.57803275]
[1763195220189,4.91749902,141.68,141.64,25.38053373]
[1763195220595,0.72,141.67,141.64,7.06015249]
[1763195220901,4.19749902,141.66,141.62,7.73094312]
[1763195221199,4.19749902,141.66,141.62,7.06094312]
[1763195221200,104.3,141.65,141.62,7.06094312]
[1763195221397,104.3,141.64,141.62,7.06094312]
[1763195221976,104.3,141.64,141.62,7.73094312]
[1763195223299,104.3,141.64,141.62,0.67]
[1763195223600,104.3,141.64,141.62,2.39632265]
[1763195223807,104.3,141.64,141.62,0.67]
[1763195226004,104.3,141.64,141.62,7.73094088]
[1763195226692,104.3,141.64,141.62,9.45726353]
[1763195227213,104.3,141.64,141.62,7.73094088]
[1763195227385,104.3,141.64,141.63,2.39632265]
[1763195227723,104.3,141.67,141.63,2.39632265]
[1763195227893,0.72,141.7,141.66,1.72632265]
[1763195228084,1.72632265,141.71,141.66,1.72632265]